fUSD/lending_fUSD_20251027
["ID","MTS","AMOUNT","RATE_DAILY","PERIOD"]
[392497137,1761569442532,-150.0,0.0003346,4]
[392497138,1761569442542,-150.0,0.0003346,4]
[392497139,1761569442551,-150.0,0.0003346,4]
[392497140,1761569442560,-153.75214629,0.0003346,4]
[392497141,1761569442569,-150.93936813,0.0003346,4]
[392497142,1761569442579,-150.0,0.0003346,4]
[392497143,1761569442588,-166.14039485,0.0003346,4]
[392497144,1761569442598,-150.0,0.0003346,4]
[392497145,1761569442611,-150.0,0.0003346,4]
[392497146,1761569442621,-150.0,0.0003346,4]
[392497147,1761569442630,-150.0,0.0003346,4]
[392497148,1761569442639,-15858.0146148,0.00033551,3]
[392497149,1761569442649,-530.15,0.00033562,10]
[392497150,1761569442658,-18627.8890926,0.00033567,3]
[392497151,1761569442668,-15858.0146148,0.00033567,3]
[392497152,1761569442678,-151.0,0.00033571,2]
[392497153,1761569442687,-151.0,0.00033571,2]
[392497154,1761569442697,-151.0,0.00033571,2]
[392497155,1761569442706,-151.0,0.00033571,2]
[392497156,1761569442716,-151.0,0.00033571,2]
[392497157,1761569442726,-500.0,0.00033571,2]
[392497158,1761569442737,-151.0,0.00033571,2]
[392497159,1761569442746,-151.0,0.00033571,2]
[392497160,1761569442756,-500.0,0.00033571,2]
[392497161,1761569442765,-151.0,0.00033571,2]
[392497162,1761569442776,-151.0,0.00033571,2]
[392497163,1761569442785,-151.0,0.00033571,2]
[392497164,1761569442794,-500.0,0.00033571,2]
[392497165,1761569442804,-151.0,0.00033571,2]
[392497166,1761569442814,-151.0,0.00033571,2]
[392497167,1761569442825,-500.0,0.00033571,2]
[392497168,1761569442834,-200.0,0.00033571,2]
[392497169,1761569442844,-151.0,0.00033571,2]
[392497170,1761569442853,-500.0,0.00033571,2]
[392497171,1761569442862,-151.0,0.00033571,2]
[392497172,1761569442871,-151.0,0.00033571,2]
[392497173,1761569442880,-151.0,0.00033571,2]
[392497174,1761569442968,-500.0,0.00033571,2]
[392497175,1761569442978,-151.0,0.00033571,2]
[392497176,1761569442987,-500.0,0.00033571,2]
[392497177,1761569442996,-151.0,0.00033571,2]
[392497178,1761569443005,-151.0,0.00033571,2]
[392497179,1761569443015,-469.07986411,0.00033571,2]
[392497180,1761569443024,-151.0,0.00033571,2]
[392497181,1761569443033,-151.0,0.00033571,2]
[392497182,1761569443042,-151.0,0.00033571,2]
[392497183,1761569443052,-151.0,0.00033571,2]
[392497184,1761569443061,-151.0,0.00033571,2]
[392497185,1761569443070,-151.0,0.00033571,2]
[392497186,1761569443079,-151.0,0.00033571,2]
[392497187,1761569443088,-151.0,0.00033571,2]
[392497188,1761569443098,-151.0,0.00033571,2]
[392497189,1761569443108,-151.0,0.00033571,2]
[392497190,1761569443117,-151.0,0.00033571,2]
[392497191,1761569443126,-151.0,0.00033571,2]
[392497192,1761569443135,-151.0,0.00033571,2]
[392497193,1761569443145,-151.0,0.00033571,2]
[392497194,1761569443154,-151.0,0.00033571,2]
[392497195,1761569443164,-151.0,0.00033571,2]
[392497196,1761569443173,-151.0,0.00033571,2]
[392497197,1761569443182,-151.0,0.00033571,2]
[392497198,1761569443191,-151.0,0.00033571,2]
[392497199,1761569443201,-151.0,0.00033571,2]
[392497200,1761569443211,-151.0,0.00033571,2]
[392497201,1761569443220,-200.0,0.00033571,2]
[392497202,1761569443229,-500.0,0.00033571,2]
[392497203,1761569443238,-449.33228507,0.00033571,2]
[392497204,1761569443247,-151.0,0.00033571,2]
[392497205,1761569443256,-151.0,0.00033571,2]
[392497206,1761569443266,-151.0,0.00033571,2]
[392497207,1761569443275,-151.0,0.00033571,2]
[392497208,1761569443285,-151.0,0.00033571,2]
[392497209,1761569443294,-151.0,0.00033571,2]
[392497210,1761569443303,-151.0,0.00033571,2]
[392497211,1761569443312,-151.0,0.00033571,2]
[392497212,1761569443322,-151.0,0.00033571,2]
[392497213,1761569443333,-151.0,0.00033571,2]
[392497214,1761569443342,-151.0,0.00033571,2]
[392497215,1761569443351,-200.0,0.00033571,2]
[392497216,1761569443361,-596.19,0.0003359,14]
[392497217,1761569443371,-16544.21,0.00033591,2]
[392497218,1761569443381,-1000.0,0.0003361,2]
[392497219,1761569443391,-4327.56461154,0.00033834,2]
[392497220,1761569443404,-18627.8890926,0.00033863,3]
[392497221,1761569443414,-15858.0146148,0.00033863,3]
[392497222,1761569443424,-596.19,0.00033864,14]
[392497223,1761569443434,-1500.0,0.00033905,5]
[392497224,1761569443443,-1500.0,0.00033905,2]
[392497225,1761569443453,-15858.0146148,0.00033975,3]
[392497226,1761569443474,-7863.96949146,0.00033985,2]
[392497227,1761569443492,-18627.8890926,0.00034014,3]
[392497228,1761569443512,-18627.8890926,0.00034024,3]
[392497229,1761569443531,-15858.0146148,0.00034024,3]
[392497230,1761569443546,-34536.72,0.00034034,2]
[392497231,1761569443566,-500.0,0.00034072,2]
[392497232,1761569443591,-500.0,0.00034073,5]
[392497233,1761569443615,-500.0,0.00034073,5]
[392497234,1761569443635,-500.0,0.00034073,5]
[392497235,1761569443659,-167.8322669,0.00034073,5]
[392497236,1761569443678,-500.0,0.00034073,5]
[392497237,1761569443693,-500.0,0.00034073,5]
[392497238,1761569443711,-500.0,0.00034073,5]
[392497239,1761569443726,-500.0,0.00034073,5]
[392497240,1761569443745,-500.0,0.00034073,5]
[392497241,1761569443764,-500.0,0.00034073,5]
[392497242,1761569443781,-1000.0,0.00034075,2]
[392497243,1761569443797,-596.19,0.00034138,14]
[392497244,1761569443812,-385.49,0.00034267,2]
[392497245,1761569443831,-476.74869043,0.00034379,2]
[392497246,1761569443845,-150.0,0.0003439,7]
[392497247,1761569443860,-150.0,0.0003439,7]
[392497248,1761569443876,-152.43,0.000344,60]
[392497249,1761569443891,-596.19,0.00034412,14]
[392497250,1761569443906,-15858.0146148,0.00034443,3]
[392497251,1761569443922,-1402.35955962,0.00034453,5]
[392497253,1761569443939,-1512.5624593,0.00034453,2]
[392497254,1761569443953,-152.43,0.000345,60]
[392497255,1761569443969,-18627.8890926,0.00034518,3]
[392497256,1761569443984,-500.0,0.00034529,2]
[392497257,1761569443999,-500.0,0.00034529,2]
[392497258,1761569444013,-500.0,0.00034529,2]
[392497259,1761569444030,-250.0,0.00034529,2]
[392497260,1761569444044,-500.0,0.00034529,2]
[392497261,1761569444059,-250.0,0.00034529,2]
[392497262,1761569444075,-500.0,0.00034529,2]
[392497263,1761569444089,-250.0,0.00034529,2]
[392497266,1761569444104,-250.0,0.00034529,2]
[392497268,1761569444118,-500.0,0.00034529,2]
[392497269,1761569444133,-277.35679052,0.00034529,2]
[392497270,1761569444148,-574.12855637,0.00034529,2]
[392497271,1761569444163,-250.0,0.00034529,2]
[392497272,1761569444178,-500.0,0.00034529,2]
[392497273,1761569444192,-500.0,0.00034529,2]
[392497274,1761569444208,-250.0,0.00034529,2]
[392497275,1761569444223,-500.0,0.00034529,2]
[392497276,1761569444239,-500.0,0.00034529,2]
[392497277,1761569444254,-250.0,0.00034529,2]
[392497278,1761569444271,-250.0,0.00034529,2]
[392497279,1761569444284,-500.0,0.00034529,2]
[392497280,1761569444295,-500.0,0.00034529,2]
[392497281,1761569444440,-250.0,0.00034529,2]
[392497282,1761569444464,-250.0,0.00034529,2]
[392497283,1761569444475,-500.0,0.00034529,2]
[392497284,1761569444485,-500.0,0.00034529,2]
[392497285,1761569444495,-250.0,0.00034529,2]
[392497286,1761569444505,-250.0,0.00034529,2]
[392497287,1761569444514,-500.0,0.00034529,2]
[392497288,1761569444523,-500.0,0.00034529,2]
[392497289,1761569444532,-250.0,0.00034529,2]
[392497290,1761569444542,-397.55468853,0.00034529,2]
[392497291,1761569444551,-500.0,0.00034529,2]
[392497292,1761569444561,-250.0,0.00034529,2]
[392497293,1761569444571,-500.0,0.00034529,2]
[392497294,1761569444581,-250.0,0.00034529,2]
[392497295,1761569444591,-500.0,0.00034529,2]
[392497296,1761569444602,-250.0,0.00034529,2]
[392497297,1761569444614,-500.0,0.00034529,2]
[392497298,1761569444624,-250.0,0.00034529,2]
[392497299,1761569444634,-500.0,0.00034529,2]
[392497300,1761569444643,-250.0,0.00034529,2]
[392497301,1761569444653,-500.0,0.00034529,2]
[392497302,1761569444662,-250.0,0.00034529,2]
[392497303,1761569444671,-250.0,0.00034529,2]
[392497304,1761569444680,-500.0,0.00034529,2]
[392497305,1761569444690,-500.0,0.00034529,2]
[392497306,1761569444699,-500.0,0.00034529,2]
[392497307,1761569444707,-500.0,0.00034529,2]
[392497308,1761569444718,-500.0,0.00034529,2]
[392497309,1761569444727,-500.0,0.00034529,2]
[392497310,1761569444737,-500.0,0.00034529,2]
[392497311,1761569444747,-500.0,0.00034529,2]
[392497312,1761569444756,-500.0,0.00034529,2]
[392497313,1761569444765,-578.20924308,0.00034529,2]
[392497314,1761569444774,-500.0,0.00034529,2]
[392497315,1761569444783,-500.0,0.00034529,2]
[392497316,1761569444792,-152.43,0.000346,60]
[392497317,1761569444801,-177.72,0.00034614,2]
[392497318,1761569444811,-533.15473545,0.00034621,5]
[392497319,1761569444823,-1000.0,0.00034621,5]
[392497320,1761569444832,-1000.0,0.00034621,5]
[392497321,1761569444841,-1000.0,0.00034621,5]
[392497322,1761569444852,-502.69763553,0.00034621,5]
[392497323,1761569444862,-500.0,0.00034639,2]
[392497324,1761569444872,-18627.8890926,0.0003464,3]
[392497325,1761569444881,-31716.0292296,0.0003464,3]
[392497326,1761569444892,-10372.03,0.00034649,2]
[392497327,1761569444902,-10589.19,0.00034649,2]
[392497328,1761569444913,-9999.99,0.00034649,2]
[392497329,1761569444923,-596.23891154,0.00034686,14]
[392497330,1761569444932,-150.0,0.000347,7]
[392497331,1761569444942,-150.0,0.000347,7]
[392497332,1761569444951,-152.43,0.000347,60]
[392497333,1761569444959,-186.09,0.00034738,2]
[392497334,1761569444969,-5018.0,0.00034764,7]
[392497335,1761569444978,-152.43,0.000348,60]
[392497336,1761569444988,-152.43,0.000349,60]
[392497337,1761569444998,-18627.8890926,0.00034916,3]
[392497338,1761569445008,-5018.0,0.00034926,2]
[392497339,1761569445017,-15858.0146148,0.00034992,3]
[392497340,1761569445026,-500.0,0.00035,5]
[392497341,1761569445035,-152.43,0.00035,60]
[392497342,1761569445044,-5018.0,0.00035002,120]
[392497343,1761569445053,-173.08911379,0.00035005,2]
[392497344,1761569445063,-595.37131296,0.00035077,2]
[392497345,1761569445074,-152.43,0.000351,60]
[392497346,1761569445083,-1589.59351415,0.00035168,5]
[392497347,1761569445093,-1500.0,0.00035168,5]
[392497348,1761569445104,-1500.0,0.00035168,5]
[392497349,1761569445114,-500.0,0.00035173,5]
[392497350,1761569445123,-500.0,0.00035173,5]
[392497351,1761569445132,-501.66177155,0.00035173,5]
[392497352,1761569445142,-327.50826095,0.00035173,5]
[392497353,1761569445153,-502.10628795,0.00035173,5]
[392497354,1761569445166,-247.0,0.00035185,90]
[392497355,1761569445175,-247.0,0.00035185,90]
[392497356,1761569445184,-247.0,0.00035185,90]
[392497357,1761569445193,-247.0,0.00035185,90]
[392497358,1761569445202,-247.0,0.00035185,90]
[392497359,1761569445211,-247.0,0.00035185,90]
[392497360,1761569445220,-247.0,0.00035185,90]
[392497361,1761569445230,-247.0,0.00035185,90]
[392497362,1761569445239,-247.0,0.00035185,90]
[392497363,1761569445248,-247.0,0.00035185,90]
[392497364,1761569445257,-247.0,0.00035185,90]
[392497365,1761569445267,-247.0,0.00035185,90]
[392497366,1761569445277,-263.0,0.00035185,90]
[392497367,1761569445287,-263.0,0.00035185,90]
[392497368,1761569445296,-263.0,0.00035185,90]
[392497369,1761569445305,-263.0,0.00035185,90]
[392497370,1761569445314,-263.0,0.00035185,90]
[392497371,1761569445324,-263.0,0.00035185,90]
[392497372,1761569445334,-263.0,0.00035185,90]
[392497373,1761569445343,-263.0,0.00035185,90]
[392497374,1761569445353,-263.0,0.00035185,90]
[392497375,1761569445362,-263.0,0.00035185,90]
[392497376,1761569445371,-226.0,0.00035185,90]
[392497377,1761569445380,-226.0,0.00035185,90]
[392497378,1761569445389,-226.0,0.00035185,90]
[392497379,1761569445399,-226.0,0.00035185,90]
[392497380,1761569445408,-226.0,0.00035185,90]
[392497381,1761569445417,-226.0,0.00035185,90]
[392497382,1761569445427,-226.0,0.00035185,90]
[392497383,1761569445436,-226.0,0.00035185,90]
[392497384,1761569445445,-226.0,0.00035185,90]
[392497385,1761569445455,-226.0,0.00035185,90]
[392497386,1761569445464,-226.0,0.00035185,90]
[392497387,1761569445473,-226.0,0.00035185,90]
[392497388,1761569445482,-177.0,0.00035185,90]
[392497389,1761569445491,-177.0,0.00035185,90]
[392497390,1761569445500,-177.0,0.00035185,90]
[392497391,1761569445509,-177.0,0.00035185,90]
[392497392,1761569445519,-177.0,0.00035185,90]
[392497394,1761569445528,-177.0,0.00035185,90]
[392497395,1761569445537,-177.0,0.00035185,90]
[392497396,1761569445546,-177.0,0.00035185,90]
[392497397,1761569445555,-177.0,0.00035185,90]
[392497398,1761569445565,-177.0,0.00035185,90]
[392497399,1761569445575,-244.0,0.00035185,90]
[392497400,1761569445585,-244.0,0.00035185,90]
[392497401,1761569445594,-244.0,0.00035185,90]
[392497402,1761569445605,-244.0,0.00035185,90]
[392497403,1761569445618,-244.0,0.00035185,90]
[392497404,1761569445627,-244.0,0.00035185,90]
[392497405,1761569445636,-244.0,0.00035185,90]
[392497406,1761569445647,-244.0,0.00035185,90]
[392497407,1761569445657,-244.0,0.00035185,90]
[392497408,1761569445667,-244.0,0.00035185,90]
[392497409,1761569445679,-244.0,0.00035185,90]
[392497411,1761569445689,-244.0,0.00035185,90]
[392497412,1761569445699,-223.0,0.00035185,90]
[392497413,1761569445708,-223.0,0.00035185,90]
[392497414,1761569445718,-223.0,0.00035185,90]
[392497415,1761569445728,-223.0,0.00035185,90]
[392497416,1761569445737,-223.0,0.00035185,90]
[392497417,1761569445747,-223.0,0.00035185,90]
[392497418,1761569445758,-223.0,0.00035185,90]
[392497419,1761569445769,-223.0,0.00035185,90]
[392497420,1761569445778,-223.0,0.00035185,90]
[392497421,1761569445789,-223.0,0.00035185,90]
[392497422,1761569445798,-184.0,0.00035185,90]
[392497423,1761569445808,-184.0,0.00035185,90]
[392497424,1761569445818,-184.0,0.00035185,90]
[392497425,1761569445828,-184.0,0.00035185,90]
[392497426,1761569445837,-184.0,0.00035185,90]
[392497427,1761569445847,-184.0,0.00035185,90]
[392497428,1761569445857,-184.0,0.00035185,90]
[392497429,1761569445869,-184.0,0.00035185,90]
[392497430,1761569445880,-184.0,0.00035185,90]
[392497431,1761569445889,-184.0,0.00035185,90]
[392497432,1761569445899,-184.0,0.00035185,90]
[392497433,1761569445909,-184.0,0.00035185,90]
[392497434,1761569445919,-250.0,0.00035185,90]
[392497435,1761569445930,-250.0,0.00035185,90]
[392497436,1761569445940,-250.0,0.00035185,90]
[392497437,1761569445950,-250.0,0.00035185,90]
[392497438,1761569445959,-250.0,0.00035185,90]
[392497439,1761569445968,-250.0,0.00035185,90]
[392497440,1761569445977,-250.0,0.00035185,90]
[392497441,1761569445986,-250.0,0.00035185,90]
[392497442,1761569445995,-250.0,0.00035185,90]
[392497443,1761569446004,-250.0,0.00035185,90]
[392497444,1761569446014,-18627.8890926,0.00035191,3]
[392497445,1761569446023,-15858.0146148,0.00035191,3]
[392497446,1761569446032,-152.43,0.000352,60]
[392497447,1761569446042,-152.43,0.000353,60]
[392497448,1761569446051,-1000.0,0.00035307,2]
[392497449,1761569446060,-150.0,0.00035319,7]
[392497450,1761569446070,-150.0,0.00035319,7]
[392497451,1761569446079,-150.0,0.00035319,7]
[392497452,1761569446172,-658.94,0.00035357,2]
[392497453,1761569446182,-152.43,0.000354,60]
[392497454,1761569446191,-465.0294653,0.00035411,5]
[392497455,1761569446200,-151.0,0.00035433,14]
[392497456,1761569446210,-18627.8890926,0.00035435,3]
[392497457,1761569446220,-15858.0146148,0.00035435,3]
[392497458,1761569446229,-15858.0146148,0.00035445,3]
[392497459,1761569446238,-4327.56461154,0.00035469,2]
[392497460,1761569446247,-152.43,0.000355,60]
[392497461,1761569446256,-152.43,0.000356,60]
[392497462,1761569446266,-500.0,0.00035616,30]
[392497463,1761569446276,-617.40005154,0.00035625,2]
[392497464,1761569446285,-18627.8890926,0.00035645,3]
[392497465,1761569446299,-4979.0,0.00035655,2]
[392497466,1761569446309,-152.43,0.000357,60]
[392497467,1761569446318,-2000.0,0.00035716,5]
[392497468,1761569446328,-364.16983711,0.00035716,5]
[392497469,1761569446337,-347.56605773,0.00035721,5]
[392497470,1761569446347,-152.43,0.000358,60]
[392497471,1761569446356,-500.0,0.0003589,30]
[392497472,1761569446365,-287.61899177,0.00035898,2]
[392497473,1761569446374,-152.43,0.000359,60]
[392497474,1761569446383,-186.09,0.00035905,2]
[392497475,1761569446393,-150.0,0.00035939,7]
[392497476,1761569446402,-150.0,0.00035939,7]
[392497477,1761569446411,-409.97130382,0.00036,50]
[392497478,1761569446420,-5000.14725836,0.00036,2]
[392497479,1761569446429,-307.53314374,0.00036,2]
[392497480,1761569446439,-152.0,0.00036,30]
[392497481,1761569446449,-152.43,0.00036,60]
[392497482,1761569446458,-1238.02143287,0.0003605,5]
[392497483,1761569446467,-15858.0146148,0.00036051,3]
[392497484,1761569446477,-385.49,0.0003607,2]
[392497485,1761569446486,-500.0,0.00036083,2]
[392497486,1761569446496,-18627.8890926,0.00036083,3]
[392497487,1761569446506,-4979.0,0.00036094,7]
[392497488,1761569446515,-152.43,0.000361,60]
[392497489,1761569446524,-500.0,0.00036164,30]
[392497490,1761569446533,-640.24385345,0.00036173,2]
[392497491,1761569446542,-152.43,0.000362,60]
[392497492,1761569446551,-1087.12879184,0.00036203,8]
[392497493,1761569446560,-500.0,0.00036215,2]
[392497494,1761569446570,-500.0,0.00036235,2]
[392497495,1761569446579,-15858.0146148,0.00036235,3]
[392497496,1761569446589,-677.16036098,0.00036239,2]
[392497497,1761569446601,-4771.0,0.00036245,120]
[392497498,1761569446610,-150.0,0.00036249,7]
[392497499,1761569446621,-150.0,0.00036249,7]
[392497500,1761569446630,-37255.7781852,0.00036251,3]
[392497501,1761569446639,-15858.0146148,0.00036251,3]
[392497502,1761569446649,-150.99,0.00036261,2]
[392497503,1761569446658,-29310.45,0.00036261,2]
[392497504,1761569446667,-9120.51,0.00036261,2]
[392497505,1761569446676,-9999.99,0.00036261,2]
[392497506,1761569446685,-8287.89,0.00036261,2]
[392497507,1761569446695,-627.69,0.00036261,2]
[392497508,1761569446704,-150.99,0.00036261,30]
[392497509,1761569446714,-1587.18,0.00036261,2]
[392497510,1761569446724,-354.46,0.00036261,20]
[392497511,1761569446733,-499.99,0.00036261,2]
[392497512,1761569446742,-9999.99,0.00036261,2]
[392497513,1761569446752,-9999.99,0.00036261,2]
[392497514,1761569446761,-9999.99,0.00036261,2]
[392497515,1761569446770,-1717.02,0.00036261,2]
[392497516,1761569446779,-3647.8,0.00036261,2]
[392497517,1761569446788,-4717.9,0.00036261,90]
[392497518,1761569446797,-3579.68,0.00036261,2]
[392497519,1761569446807,-999.99,0.00036261,2]
[392497520,1761569446817,-9999.99,0.00036261,2]
[392497521,1761569446826,-1994.52284179,0.00036264,5]
[392497522,1761569446836,-522.06,0.000363,30]
[392497523,1761569446846,-152.43,0.000363,60]
[392497524,1761569446857,-15858.0146148,0.00036377,3]
[392497525,1761569446866,-176.46,0.00036387,2]
[392497526,1761569446875,-1202.57,0.00036387,2]
[392497527,1761569446885,-152.43,0.000364,60]
[392497528,1761569446894,-500.0,0.00036438,30]
[392497529,1761569446903,-152.43,0.000365,60]
[392497530,1761569446912,-1000.0,0.00036539,2]
[392497531,1761569446923,-677.16036098,0.00036597,2]
[392497532,1761569446932,-152.43,0.000366,60]
[392497533,1761569446943,-448.0,0.00036661,2]
[392497534,1761569446952,-448.0,0.00036665,2]
[392497535,1761569446962,-152.43,0.000367,60]
[392497536,1761569446971,-500.0,0.00036712,30]
[392497537,1761569446981,-663.93287602,0.00036721,2]
[392497538,1761569446991,-150.0,0.000368,7]
[392497539,1761569447000,-152.43,0.000368,60]
[392497540,1761569447009,-1454.16655,0.0003682,2]
[392497541,1761569447018,-1000.0,0.00036856,7]
[392497542,1761569447027,-878.68,0.000369,14]
[392497543,1761569447036,-522.06,0.000369,30]
[392497544,1761569447046,-152.43,0.000369,60]
[392497545,1761569447055,-448.0,0.00036909,120]
[392497546,1761569447065,-1425.0,0.00036927,2]
[392497547,1761569447075,-677.16036098,0.00036931,2]
[392497548,1761569447084,-476.05,0.00036936,2]
[392497549,1761569447093,-476.05,0.00036936,2]
[392497550,1761569447103,-476.05,0.00036936,2]
[392497551,1761569447113,-476.05,0.00036936,2]
[392497552,1761569447123,-476.05,0.00036936,2]
[392497553,1761569447134,-476.05,0.00036936,2]
[392497554,1761569447143,-476.05,0.00036936,2]
[392497555,1761569447152,-476.05,0.00036937,2]
[392497556,1761569447161,-476.05,0.00036937,2]
[392497557,1761569447171,-1425.0,0.00036951,2]
[392497558,1761569447182,-223.5135107,0.00036965,7]
[392497559,1761569447191,-15858.0146148,0.0003698,4]
[392497560,1761569447200,-500.0,0.00036986,120]
[392497561,1761569447209,-500.0,0.00036986,30]
[392497562,1761569447219,-5843.36249435,0.00037,30]
[392497563,1761569447228,-1006.0,0.00037,7]
[392497564,1761569447237,-152.43,0.00037,60]
[392497565,1761569447246,-500.0,0.00037011,28]
[392497566,1761569447256,-1425.0,0.00037011,2]
[392497567,1761569447266,-500.0,0.00037011,28]
[392497568,1761569447275,-1425.0,0.00037012,2]
[392497569,1761569447285,-47574.0438445,0.0003702,4]
[392497570,1761569447294,-63432.0584593,0.0003703,4]
[392497571,1761569447303,-623.29496318,0.00037039,2]
[392497572,1761569447313,-235.79973413,0.00037039,2]
[392497573,1761569447324,-999.0,0.00037039,120]
[392497574,1761569447334,-120664.2345,0.0003704,2]
[392497575,1761569447342,-1000.0,0.0003704,2]
[392497576,1761569447352,-1425.0,0.00037044,2]
[392497577,1761569447361,-1425.0,0.00037044,2]
[392497578,1761569447370,-1454.16656,0.0003705,2]
[392497579,1761569447380,-1425.0,0.00037062,2]
[392497580,1761569447390,-15858.0146148,0.00037063,4]
[392497581,1761569447399,-500.0,0.00037073,5]
[392497582,1761569447409,-150.0,0.00037073,5]
[392497583,1761569447420,-1425.0,0.00037085,2]
[392497584,1761569447430,-209.0335309,0.00037093,120]
[392497585,1761569447439,-205.3872545,0.00037093,120]
[392497586,1761569447449,-900.0,0.00037094,5]
[392497587,1761569447458,-150.0,0.000371,2]
[392497588,1761569447468,-5550.1883846,0.000371,2]
[392497589,1761569447477,-152.43,0.000371,60]
[392497590,1761569447487,-155.08,0.00037103,2]
[392497591,1761569447496,-4327.56461154,0.00037103,2]
[392497592,1761569447506,-167.91541485,0.00037107,15]
[392497593,1761569447515,-173.08911379,0.00037107,2]
[392497594,1761569447524,-409.422216,0.00037107,2]
[392497595,1761569447533,-6482.93319454,0.00037107,2]
[392497596,1761569447542,-777.97261834,0.00037107,2]
[392497597,1761569447551,-1425.0,0.0003712,2]
[392497598,1761569447560,-448.0,0.00037122,2]
[392497599,1761569447570,-500.0,0.00037123,120]
[392497600,1761569447580,-177.0,0.00037123,120]
[392497601,1761569447590,-1000.0,0.00037134,7]
[392497602,1761569447603,-155.07970898,0.00037134,2]
[392497603,1761569447612,-151.0,0.00037144,14]
[392497604,1761569447621,-15858.0146148,0.00037146,4]
[392497605,1761569447631,-47574.0438445,0.00037154,4]
[392497606,1761569447721,-500.0,0.00037157,2]
[392497607,1761569447732,-1425.0,0.00037159,2]
[392497608,1761569447741,-1000.0,0.00037161,7]
[392497609,1761569447750,-433.99336788,0.00037165,2]
[392497610,1761569447759,-1738.88043114,0.0003717,50]
[392497611,1761569447768,-2000.0,0.00037172,120]
[392497612,1761569447779,-2000.0,0.00037172,120]
[392497613,1761569447789,-2000.0,0.00037172,120]
[392497614,1761569447800,-2000.0,0.00037172,120]
[392497615,1761569447810,-2000.0,0.00037172,120]
[392497616,1761569447818,-2000.0,0.00037172,120]
[392497617,1761569447828,-2000.0,0.00037172,120]
[392497618,1761569447839,-2000.0,0.00037172,120]
[392497619,1761569447850,-2000.0,0.00037172,120]
[392497620,1761569447860,-2000.0,0.00037172,120]
[392497621,1761569447870,-2000.0,0.00037172,120]
[392497622,1761569447879,-2000.0,0.00037172,120]
[392497623,1761569447888,-2000.0,0.00037172,120]
[392497624,1761569447897,-2000.0,0.00037172,120]
[392497625,1761569447906,-2000.0,0.00037172,120]
[392497626,1761569447915,-2000.0,0.00037172,120]
[392497627,1761569447924,-2000.0,0.00037172,120]
[392497628,1761569447933,-2000.0,0.00037172,120]
[392497629,1761569447942,-2000.0,0.00037172,120]
[392497630,1761569447953,-2000.0,0.00037172,120]
[392497631,1761569447964,-640.694,0.00037172,120]
[392497632,1761569447974,-150.0,0.00037174,7]
[392497633,1761569447983,-500.0,0.00037175,28]
[392497634,1761569447991,-500.0,0.00037175,120]
[392497635,1761569448000,-164.87031678,0.00037178,7]
[392497636,1761569448009,-150.0,0.00037178,7]
[392497637,1761569448019,-150.0,0.00037178,7]
[392497638,1761569448028,-150.0,0.00037178,7]
[392497639,1761569448038,-155.78310216,0.00037178,7]
[392497640,1761569448048,-150.0,0.00037178,7]
[392497641,1761569448058,-152.23972026,0.00037178,7]
[392497642,1761569448068,-150.0,0.00037178,7]